Workbook

Sheet 1. Forside
A1: Morsø Forsyning (Spildevand)
D8: Bilag A
D13: Indholdsfortegnelse
C16: Fane nr. 2 | D16: Samlet prisloft
C17: Fane nr. 3 | D17: Driftsomkostninger
C18: Fane nr. 4 | D18: Historiske investeringer
C19: Fane nr. 5 | D19: Gennemførte investeringer
C20: Fane nr. 6 | D20: Korrektion investeringer
C21: Fane nr. 7 | D21: Planlagte investeringer
C22: Fane nr. 8 | D22: 1:1 omkostninger
C23: Fane nr. 9 | D23: Miljø- og servicemål
C24: Fane nr. 10 | D24: Klimatilpasning
C25: Fane nr. 11 | D25: Nettofinansielle poster
C26: Fane nr. 12 | D26: Over- eller underdækning
C27: Fane nr. 13 | D27: Kontrol med indtægtsrammen og oversigt over ekstraordinære effektiviseringsgevinster

Sheet 2. Samlet prisloft
A1: ='1. Forside'!A1 -> Morsø Forsyning (Spildevand)
B4: Fane 2. Samlet prisloft for 2015
B6: Driftsomkostninger
B7: Driftsomkostninger i prisloftet for 2014 | C7: ='3. Driftsomkostninger'!C19 -> 22409820.32 | D7: kr.
B8: Bortfald af væsentlige omkostninger | C8: =-'3. Driftsomkostninger'!C24 -> 0 | D8: kr.
B9: Korrektion for prisudviklingen 2014-2015 | C9: ='3. Driftsomkostninger'!C30 -> 17927.85626 | D9: kr.
B10: Forhøjelse til effektivt niveau iht. benchmarkingen | C10: ='3. Driftsomkostninger'!C36 -> 0 | D10: kr.
B11: Korrektion for generelt effektiviseringskrav | C11: =-'3. Driftsomkostninger'!C42 -> -98603.20942 | D11: kr.
B12: Korrektion for individuelt effektiviseringskrav | C12: =-'3. Driftsomkostninger'!C51 -> -563046.7333 | D12: kr.
B13: Driftsomkostninger i alt | C13: =SUM(C7:C12) -> 21766098.24 | D13: kr. | E13: =C13 -> 21766098.24 | F13: kr.
B14: Investeringer
B15: Tillæg for historiske investeringer | C15: ='4. Historiske investeringer'!C9 -> 27703061.39 | D15: kr.
B16: Tillæg for gennemførte investeringer i 2011-2013 | C16: ='5. Gennemførte investeringer'!F28 -> 3788282.05 | D16: kr.
B17: Korrektion af tillæg for planlagte investeringer vedrørende 2013 | C17: ='6. Korrektion investeringer'!C10 -> 405675.0533 | D17: kr.
B18: Tillæg for planlagte investeringer i 2014 og 2015 | C18: ='7. Planlagte investeringer'!F27 -> 1333333.333 | D18: kr.
B19: Investeringstillæg i alt | C19: =SUM(C15:C18) -> 33230351.83 | D19: kr. | E19: =C19 -> 33230351.83 | F19: kr.
B20: Øvrige omkostninger mv.
B21: Tillæg for 1:1 omkostninger i 2015 | C21: ='8. 1-1 omkostninger'!C9 -> 688000 | D21: kr.
B22: Tillæg vedr. revisorerklæringer og DANVA/FVD-kontingent | C22: ='8. 1-1 omkostninger'!C17 -> 47000 | D22: kr.
B23: Korrektion ift. faktiske 1:1 omkostninger i 2013 | C23: ='8. 1-1 omkostninger'!C23 -> -281822 | D23: kr.
B24: Tillæg for driftsomkostninger til miljø- og servicemål i 2015 | C24: ='9. Miljø- og servicemål'!C8 -> 0 | D24: kr.
B25: Korrektion ift. faktiske driftsomkostninger til miljø- og servicemål i 2013 | C25: ='9. Miljø- og servicemål'!C15 -> 0 | D25: kr.
B26: Tillæg for driftsomkostninger til medfinansiering af klimatilpasningsprojekter i 2015 | C26: ='10. Klimatilpasning'!C9 -> 0 | D26: kr.
B27: Korrektion ift. faktiske omkostninger til medfinansiering af klimatilpasningsprojekter i 2013 | C27: ='10. Klimatilpasning'!C16 -> 0 | D27: kr.
B28: Tillæg/fradrag for nettofinansielle poster i 2015 | C28: ='11. Nettofinansielle poster'!C9 -> 3750000 | D28: kr.
B29: Korrektion ift. faktiske nettofinansielle poster i 2013 | C29: ='11. Nettofinansielle poster'!C16 -> -1506298 | D29: kr.
B30: Øvrige omkostninger mv. i alt | C30: =SUM(C21:C29) -> 2696880 | D30: kr. | E30: =C30 -> 2696880 | F30: kr.
B31: Historisk over- eller underdækning
B32: Tillæg/fradrag for over- eller underdækning til og med 2010 | C32: ='12. Over- eller underdækning'!C11 -> 0 | D32: kr. | E32: =C32 -> 0 | F32: kr.
B33: Korrektion i forhold til tidligere indtægtsramme
B34: Korrektion for overholdelse af indtægtsramme i prisloft 2013 | C34: ='13. Kontrol med indtægtsrammen'!E27 -> 11468503.33 | D34: kr. | E34: =C34 -> 11468503.33 | F34: kr.
B35: Samlet prisloft
B36: Indtægtsramme i 2015 | E36: =SUM(E13:E34) -> 69161833.39 | F36: kr.
B37: Debiteret vandmængde i 2013 | E37: 883140 | F37: m3
B38: Prisloft 2015 | E38: =E36/E37 -> 78.31355549 | F38: kr./m3

Sheet 3. Driftsomkostninger
A1: ='1. Forside'!A1 -> Morsø Forsyning (Spildevand)
B4: Fane 3. Driftsomkostninger
B6: Driftsomkostningerne i prisloftet for 2014
B7: Korrigerede driftsomkostninger i prisloftet for 2013 (DOiPL 2013) | C7: 21440193.33 | D7: kr.
B8: Prisfremskrivning 1,5 pct. | C8: =0.015*SUM(C7:C7) -> 321602.8999 | D8: kr.
B9: Generelt effektiviseringskrav (0 pct.) | C9: 0 | D9: kr.
B10: Individuelt effektiviseringskrav | C10: 0 | D10: kr.
B11: Tillæg i henhold til § 8, stk. 2, pkt. 1 prisfremskrevet til 2014-niveau | C11: 1108985.096 | D11: kr.
B12: Driftsomkostningerne i prisloftet for 2014 (DOiPL 2014) | C12: =SUM(C7:C11) -> 22870781.33 | D12: kr.
B15: Forskel i § 8, stk. 2, pkt. 1 - tillæg
B16: Godkendt tillæg i PL2014 prisfremskrevet til 2014-niveau | C16: 1108985.096 | D16: kr.
B17: Godkendt tillæg i PL2015 prisfremskrevet til 2014-niveau | C17: 648024.0928 | D17: kr.
B18: Forskel | C18: =C17-C16 -> -460961.0035 | D18: kr.
B19: Korrigerede driftsomkostninger i prisloftet for 2014 | C19: =C12+C18 -> 22409820.32 | D19: kr.
B22: Korrektion for forventet bortfald af væsentlige omkostninger
B23: Selskabets indberettede bortfald af væsentlige omkostninger inden 2015 | C23: 0 | D23: kr.
B24: Korrektion for forventet bortfald | C24: =SUM(C23:C23) -> 0 | D24: kr.
B27: Korrektion for prisudviklingen fra 2014-2015
B28: Driftsomkostningerne i prisloftet for 2014 | C28: =C19-C24 -> 22409820.32 | D28: kr.
B29: Prisudvikling 2014 - 2015 | C29: 0.08 | D29: pct.
B30: Korrektion for prisudvikling | C30: =C28*(C29/100) -> 17927.85626 | D30: kr.
B33: Eventuel forhøjelse til effektivt niveau iht. benchmarkingen
B34: Selskabets effektive driftsomkostninger iht. benchmarkingen | C34: 17143512.48 | D34: kr.
B35: Selskabets pristalskorrigerede driftsomkostninger i 2015-niveau | C35: =C28+C30 -> 22427748.18 | D35: kr.
B36: Eventuel forhøjelse til effektivt niveau | C36: =IF(C35>C34,0,C34-C35) -> 0 | D36: kr.
B39: Korrektion for generelt effektiviseringskrav
B40: Driftsomkostningerne i prisloftet for 2014 | C40: =C28 -> 22409820.32 | D40: kr.
B41: Generelt effektiviseringskrav | C41: 0.44 | D41: pct.
B42: Endeligt generelt effektiviseringskrav | C42: =C40*(C41/100) -> 98603.20942 | D42: kr.
B45: Korrektion for individuelt effektiviseringskrav
B46: Rå effektiviseringspotentiale | C46: 5266307.754 | D46: kr.
B47: Effektiviseringspotentiale efter eventuel korrektion for særlige forhold | C47: 5266307.754 | D47: kr.
B48: Effektiviseringspotentiale efter forsigtighedshensyn | C48: 2252186.933 | D48: kr.
B49: Effektiviseringspotentiale efter eventuel korrektion for sammensætning af signifikante costdrivere | C49: 2252186.933 | D49: kr.
B50: Umiddelbart effektiviseringskrav | C50: =C49/4 -> 563046.7333 | D50: kr.
B51: Endeligt individuelt effektiviseringskrav | C51: =IF(C50>0.05*C28,0.05*C28,IF(C50<0.01*C28,0,C50)) -> 563046.7333 | D51: kr.

Sheet 4. Historiske investeringer
A1: ='3. Driftsomkostninger'!A1 -> Morsø Forsyning (Spildevand)
B4: Fane 4. Historiske investeringer
B6: Tillæg for historiske investeringer
B7: Værdi af selskabets materielle anlægsaktiver pr. 1. januar 2010 | C7: 1142910527 | D7: kr.
B8: Den årlige standardafskrivning på de materielle anlægsaktiver iht. POLKA | C8: 27703061.39 | D8: kr.
B9: Tillæg i alt i 2015 | C9: =C8 -> 27703061.39 | D9: kr.

Sheet 5. Gennemførte investeringer
A1: ='4. Historiske investeringer'!A1 -> Morsø Forsyning (Spildevand)
B4: Fane 5. Gennemførte investeringer i 2010 - 2013
B6: Tillæg for gennemførte investeringer i 2013
B7: Beskrivelse af investeringen | C7: Årstal | D7: Std. levetid (år) | E7: Anskaffelses-pris (kr.) | F7: Afskrivning
B8: Brønde | C8: 2013 | D8: 75 | E8: 7608241 | F8: =E8/D8 -> 101443.2133 | G8: kr.
B9: Stik | C9: 2013 | D9: 75 | E9: 666288 | F9: =E9/D9 -> 8883.84 | G9: kr.
B10: Stik | C10: 2013 | D10: 75 | E10: 881626 | F10: 11755.01333 | G10: kr.
B11: Tryksatte minipumpestationer (husstandssystemer) | C11: 2013 | D11: 30 | E11: 91568 | F11: 3052.266667 | G11: kr.
B12: Pumpestationer m. overbygning (< 20 m2), Konstruktioner | C12: 2013 | D12: 50 | E12: 2986956 | F12: 59739.12 | G12: kr.
B13: Ledningsnet = Ø 200 mm | C13: 2013 | D13: 75 | E13: 4772111 | F13: 63628.14667 | G13: kr.
B14: Ø 200 mm < Ledningsnet = Ø 500 mm | C14: 2013 | D14: 75 | E14: 4427743 | F14: 59036.57333 | G14: kr.
B15: Ø 500 mm < Ledningsnet = Ø 800 mm | C15: 2013 | D15: 75 | E15: 1436620 | F15: 19154.93333 | G15: kr.
B16: Ledningsnet > Ø 1600 mm (rørbassiner og transportledninger) | C16: 2013 | D16: 75 | E16: 22643 | F16: 301.9066667 | G16: kr.
B17: Strømpeforing = Ø 200 mm | C17: 2013 | D17: 50 | E17: 15853741 | F17: 317074.82 | G17: kr.
B18: Strømpeforing Ø 200 mm < Ledningsnet = Ø 500 mm | C18: 2013 | D18: 50 | E18: 803511 | F18: 16070.22 | G18: kr.
B19: Arbejdsplads | C19: 2013 | D19: 5 | E19: 827173 | F19: 165434.6 | G19: kr.
B20: Værksteder, garager | C20: 2013 | D20: 75 | E20: 855915 | F20: 11412.2 | G20: kr.
B21: Andre bygninger (tekniske installationer, målere mv.) | C21: 2013 | D21: 75 | E21: 545191 | F21: 7269.213333 | G21: kr.
B22: Pumpestationer i brønde (< 6,25 m2), Konstruktioner | C22: 2013 | D22: 50 | E22: 396383 | F22: 7927.66 | G22: kr.
B23: Pumpestationer i brønde (< 6,25 m2), Mek/EL | C23: 2013 | D23: 20 | E23: 158950 | F23: 7947.5 | G23: kr.
B24: Mindre renseanlæg < 5.000 PE uden mulighed for opdeling | C24: 2013 | D24: 40 | E24: 151580 | F24: 3789.5 | G24: kr.
B25: Jordbassin Klasse B | C25: 2013 | D25: 50 | E25: 748190 | F25: 14963.8 | G25: kr.
B26: Tillæg for 2013 | F26: =SUM(F8:F25) -> 878884.5267 | G26: kr.
B27: Tillæg for 2010 - 2012 | F27: 2909397.523 | G27: kr.
B28: Samlet tillæg for gennemførte investeringer | F28: =F26+F27 -> 3788282.05 | G28: kr.

Sheet 6. Korrektion investeringer
A1: ='5. Gennemførte investeringer'!A1 -> Morsø Forsyning (Spildevand)
B4: Fane 6. Korrektion af tillæg for planlagte investeringer
B6: Korrektion af tillæg for planlagte investeringer vedr. 2013
B7: Tillæg for planlagte investeringer i 2013 i prisloft 2013 | C7: 628333 | D7: kr.
B8: Tillæg for planlagte investeringer i 2013 i prisloft 2014 | C8: 723761 | D8: kr.
B9: Selskabets faktiske afskrivninger på gennemførte investeringer i 2013 | C9: ='5. Gennemførte investeringer'!F26 -> 878884.5267 | D9: kr.
B10: Korrektion af tillæg for planlagte investeringer vedr. 2013 | C10: =C9-C7+C9-C8 -> 405675.0533 | D10: kr.

Sheet 7. Planlagte investeringer
A1: ='6. Korrektion investeringer'!A1 -> Morsø Forsyning (Spildevand)
B4: Fane 7. Planlagte investeringer
B6: Tillæg for planlagte investeringer i 2014 og 2015
B7: Beskrivelse af investeringen | C7: Årstal | D7: Std. levetid (år) | E7: Anskaffelses-pris (kr.) | F7: Afskrivning
B8: Ledningsnet = Ø 200 mm | C8: 2014 | D8: 75 | E8: 13050000 | F8: =E8/D8 -> 174000 | G8: kr.
B9: Ø 200 mm < Ledningsnet = Ø 500 mm | C9: 2014 | D9: 75 | E9: 6800000 | F9: =E9/D9 -> 90666.66667 | G9: kr.
B10: Strømpeforing = Ø 200 mm | C10: 2014 | D10: 50 | E10: 1600000 | F10: =E10/D10 -> 32000 | G10: kr.
B11: Brønde | C11: 2014 | D11: 75 | E11: 3200000 | F11: 42666.66667 | G11: kr.
B12: Stik | C12: 2014 | D12: 75 | E12: 1000000 | F12: 13333.33333 | G12: kr.
B13: Tryksatte minipumpestationer (husstandssystemer) | C13: 2014 | D13: 30 | E13: 1300000 | F13: 43333.33333 | G13: kr.
B14: Pumpestationer i brønde (< 6,25 m2), Konstruktioner | C14: 2014 | D14: 50 | E14: 5800000 | F14: 116000 | G14: kr.
B15: Værksteder, garager | C15: 2014 | D15: 75 | E15: 5000000 | F15: 66666.66667 | G15: kr.
B16: Ledningsnet = Ø 200 mm | C16: 2015 | D16: 75 | E16: 13000000 | F16: 173333.3333 | G16: kr.
B17: Ø 200 mm < Ledningsnet = Ø 500 mm | C17: 2015 | D17: 75 | E17: 6700000 | F17: 89333.33333 | G17: kr.
B18: Strømpeforing = Ø 200 mm | C18: 2015 | D18: 50 | E18: 1600000 | F18: 32000 | G18: kr.
B19: Brønde | C19: 2015 | D19: 75 | E19: 3200000 | F19: 42666.66667 | G19: kr.
B20: Stik | C20: 2015 | D20: 75 | E20: 1000000 | F20: 13333.33333 | G20: kr.
B21: Tryksatte minipumpestationer (husstandssystemer) | C21: 2015 | D21: 30 | E21: 1300000 | F21: 43333.33333 | G21: kr.
B22: Pumpestationer i brønde (< 6,25 m2), Konstruktioner | C22: 2015 | D22: 50 | E22: 5700000 | F22: 114000 | G22: kr.
B23: Værksteder, garager | C23: 2015 | D23: 75 | E23: 3500000 | F23: 46666.66667 | G23: kr.
B24: Køretøjer, entreprenørmaskiner | C24: 2015 | D24: 5 | E24: 1000000 | F24: 200000 | G24: kr.
B25: Tillæg for 2014 | F25: =SUMIF(C8:C24,"2014",F8:F24) -> 578666.6667 | G25: kr.
B26: Tillæg for 2015 | F26: =SUMIF(C8:C24,"2015",F8:F24) -> 754666.6667 | G26: kr.
B27: Tillæg i alt | F27: =F25+F26 -> 1333333.333 | G27: kr.

Sheet 8. 1-1 omkostninger
A1: ='7. Planlagte investeringer'!A1 -> Morsø Forsyning (Spildevand)
B4: Fane 8. 1:1 omkostninger
B6: Tillæg for budgetterede 1:1 omkostninger i 2015
B7: Betaling til Forsyningssekretariatet | C7: 33000 | D7: kr.
B8: Spildevandsafgift | C8: 655000 | D8: kr.
B9: Tillæg i alt | C9: =SUM(C7:C8) -> 688000 | D9: kr.
B14: Tillæg for budgetterede nødvendige udgifter til revisorerklæringer samt ordinært medlemskab af DANVA og FVD i 2015
B15: Betaling for ordinært medlemskab af DANVA/FVD | C15: 35000 | D15: kr.
B16: Betaling for revisorerklæringer | C16: 12000 | D16: kr.
B17: Tillæg i alt | C17: =SUM(C15:C16) -> 47000 | D17: kr.
B20: Korrektion af tillæg for faktiske 1:1 omkostninger (inkl. revisorerklæringer og ordinært medlemskab af DANVA/FVD) i 2013
B21: Selskabets faktiske 1:1 omkostninger mv. i 2013, jf. reguleringsregnskabet | C21: 695178 | D21: kr.
B22: Tillæg for budgetterede 1:1 omkostninger mv. i prisloft 2013 | C22: 977000 | D22: kr.
B23: Korrektion af tillæg for budgetterede 1:1 omkostninger mv. i 2013 | C23: =C21-C22 -> -281822 | D23: kr.

Sheet 9. Miljø- og servicemål
A1: ='8. 1-1 omkostninger'!A1 -> Morsø Forsyning (Spildevand)
B4: Fane 9. Driftsomkostninger til miljø- og servicemål
B6: Tillæg for budgetterede driftsomkostninger til miljø- og servicemål i 2015
C7: 0 | D7: kr.
B8: Tillæg i alt | C8: =SUM(C7:C7) -> 0 | D8: kr.
B12: Korrektion af tillæg for faktiske driftsomkostninger til miljø- og servicemål i 2013
B13: Selskabets faktiske driftsomkostninger til miljø- og servicemål i 2013, jf. reguleringsregnskabet | C13: 0 | D13: kr.
B14: Tillæg for budgetterede driftsomkostninger til miljø- og servicemål i prisloft 2013 | C14: 0 | D14: kr.
B15: Korrektion af tillæg for budgetterede driftsomkostninger til miljø- og servicemål i 2013 | C15: =C13-C14 -> 0 | D15: kr.

Sheet 10. Klimatilpasning
A1: ='9. Miljø- og servicemål'!A1 -> Morsø Forsyning (Spildevand)
B4: Fane 10. Medfinansiering af klimatilpasningsprojekter
B7: Tillæg for budgetterede omkostninger til medfinansiering af klimatilpasningsprojekter i 2015
C8: 0 | D8: kr.
B9: Tillæg i alt | C9: =SUM(C8:C8) -> 0 | D9: kr.
B13: Korrektion af tillæg for faktiske omkostninger til medfinansiering af klimatilpasningsprojekter i 2013
B14: Selskabets faktiske driftsomkostninger til klimatilpasningsprojekter i 2013, jf. reguleringsregnskabet | C14: 0 | D14: kr.
B15: Tillæg for budgetterede driftsomkostninger til klimatilpasningsprojekter i prisloft 2013 | C15: 0 | D15: kr.
B16: Korrektion af tillæg for budgetterede omkostninger til klimatilpasningsprojekter i 2013 | C16: =C14-C15 -> 0 | D16: kr.

Sheet 11. Nettofinansielle poster
A1: ='10. Klimatilpasning'!A1 -> Morsø Forsyning (Spildevand)
B4: Fane 11. Nettofinansielle poster
B6: Tillæg for budgetterede nettofinansielle poster i 2015
B7: Budgetterede renteudgifter og gebyrer i 2015 | C7: 3800000 | D7: kr.
B8: Budgetterede renteindtægter i 2015 | C8: 50000 | D8: kr.
B9: Tillæg/fradrag i alt | C9: =C7-C8 -> 3750000 | D9: kr.
B13: Korrektion af tillæg for faktiske nettofinansielle poster i 2013
B14: Selskabets faktiske nettofinansielle poster i 2013, jf. reguleringsregnskabet | C14: 4913230 | D14: kr.
B15: Tillæg for budgetterede nettofinansielle poster i prisloft 2013 | C15: 6419528 | D15: kr.
B16: Korrektion af tillæg for budgetterede nettofinansielle poster i 2013 | C16: =C14-C15 -> -1506298 | D16: kr.

Sheet 12. Over- eller underdækning (hidden)
A1: ='11. Nettofinansielle poster'!A1 -> Morsø Forsyning (Spildevand)
B4: Fane 12. Over- eller underdækning til og med 2010
B6: Tillæg/fradrag for over- eller underdækning til og med 2010
B7: Opgjort over- eller underdækning per 31. december 2010 | C7: 0 | D7: kr.
B8: Heraf beløb indregnet i prislofterne for 2012 - 2014 | C8: 0 | D8: kr.
B9: Endnu ikke indregnet over- eller underdækning | C9: =C7-C8 -> 0 | D9: kr.
B10: Resterende indregningsperiode (fastsat i prisloftet for 2012) | C10: 0 | D10: år
B11: Tillæg/fradrag i alt | C11: =IF(C7=0,0,C9/C10) -> 0 | D11: kr.

Sheet 13. Kontrol med indtægtsrammen
A1: ='12. Over- eller underdækning'!A1 -> Morsø Forsyning (Spildevand)
B4: Fane 13. Korrektion for overholdelse af indtægtsrammen i prisloftet for 2013
B6: Samlet opgørelse vedrørende overholdelse af indtægtsrammen i prisloftet for 2013
B7: Indtægtsramme i prisloftet for 2013 | E7: 66971189.21 | F7: kr.
B8: Ikke anvendt likviditet vedrørende investeringer i 2013
B9: Tillæg for historiske investeringer | C9: 24598003.88 | D9: kr.
B10: Tillæg for gennemførte investeringer i 2011 | C10: 590116 | D10: kr.
B11: Korrektion af tillæg for planlagte investeringer i 2011 | C11: 1611708 | D11: kr.
B12: Tillæg for planlagte investeringer i 2012 og 2013 | C12: 1206333 | D12: kr.
B13: Indtægter fra tilslutningsbidrag | C13: 994612 | D13: kr.
B14: Indtægter fra salg af anlægsaktiver | C14: 0 | D14: kr.
B15: Erstatninger vedr. anlægsaktiver mv. | C15: 0 | D15: kr.
B16: Ekstraordinær effektiviseringsgevinst anvendt til investeringer | C16: 0 | D16: kr.
B17: Udgifter til investeringer | C17: -9919218 | D17: kr.
B18: Ikke anvendt likviditet vedr. investeringer i alt | C18: =SUM(C9:C17) -> 19081554.88 | D18: kr. | E18: =IF(C18<0,0,-C18) -> -19081554.88 | F18: kr.
B19: Ekstraordinære effektiviseringsgevinster anvendt til takstnedsættelse
B20: Ekstraordinær effektiviseringsgevinst anvendt til takstnedsættelse | C20: 0 | D20: kr. | E20: =-C20 -> 0 | F20: kr.
B21: Korrektion af ikke opkrævet tillæg fra 2011 i prisloft 2013
B22: Korrektion af ikke opkrævet tillæg fra 2011 i prisloft 2013 | C22: 0 | D22: kr. | E22: =-C22 -> 0 | F22: kr.
B23: Indtægter fra primære aktiviteter mv.
B24: Indtægter fra kubikmetertakster, faste takster, særbidrag, målergebyrer samt andre takster og gebyrer | C24: 36421131 | D24: kr.
B25: Andre indtægter i prisloftåret, som selskabet har opnået i forbindelse med eller som følge af selskabets primære aktiviteter | C25: 0 | D25: kr.
B26: Indtægter fra primære aktiviteter mv. i alt | C26: =SUM(C24:C25) -> 36421131 | D26: kr. | E26: =-C26 -> -36421131 | F26: kr.
B27: Tillæg/fradrag i prisloftet for 2015 i alt | E27: =E7+E18+E20+E22+E26 -> 11468503.33 | F27: kr.
B31: Oversigt over ekstraordinære effektiviseringsgevinster
C33: 2012 | E33: 2013 | G33: 2014 | I33: 2015 | K33: 2016
B34: Indhentet ekstraordinær effektiviseringsgevinst | C34: 3797174 | D34: kr. | E34: 1653264 | F34: kr. | H34: kr. | J34: kr. | L34: kr.
B35: Gevinst anvendt til investeringer | C35: 0 | D35: kr. | E35: 0 | F35: kr. | H35: kr. | J35: kr. | L35: kr.
B36: Gevinst anvendt til takstnedsættelse | C36: 0 | D36: kr. | E36: 0 | F36: kr. | H36: kr. | J36: kr. | L36: kr.
B37: Korrektion for effektiviseringsgevinst der ikke er anvendt inden 4 år | C37: 0 | D37: kr. | E37: 0 | F37: kr. | H37: kr. | J37: kr. | K37: =IF(C38>SUM(E35:I36),C38-SUM(E35:I36),0)*-1 -> -3797174 | L37: kr.
B38: Resterende gevinst | C38: =C34-C35-C36 -> 3797174 | D38: kr. | E38: =C38+E34-E35-E36 -> 5450438 | F38: kr. | G38: =E38+G34-G35-G36 -> 5450438 | H38: kr. | I38: =G38+I34-I35-I36 -> 5450438 | J38: kr. | K38: =I38+K34-K35-K36+K37 -> 1653264 | L38: kr.
